[Event "Early-Titled-Tuesday-Blitz-October-24-2023"]
[Site "Chess.com"]
[Date "2023.10.24"]
[Round "10"]
[White "Mikhail_Golubev"]
[Black "Harry_Rakkel"]
[Result "0-1"]
[WhiteElo "2554"]
[BlackElo "2715"]
[TimeControl "180+1"]
[EndTime "9:52:45 PDT"]
[Termination "Harry_Rakkel won on time"]

1. e4 {[%clk 0:02:56.8]} 1... c5 {[%clk 0:02:59.4]} 2. Nf3 {[%clk 0:02:53.6]}
2... d6 {[%clk 0:02:59.2]} 3. d4 {[%clk 0:02:48.4]} 3... cxd4 {[%clk 0:02:59.1]}
4. Nxd4 {[%clk 0:02:49.3]} 4... Nf6 {[%clk 0:02:59]} 5. Nc3 {[%clk 0:02:50.2]}
5... a6 {[%clk 0:02:58.8]} 6. Bc4 {[%clk 0:02:50.7]} 6... e6 {[%clk 0:02:57.8]}
7. O-O {[%clk 0:02:51.3]} 7... Be7 {[%clk 0:02:52.8]} 8. Bb3 {[%clk 0:02:50.6]}
8... O-O {[%clk 0:02:48.5]} 9. f4 {[%clk 0:02:49]} 9... Nc6 {[%clk 0:02:40.4]}
10. Be3 {[%clk 0:02:46]} 10... Bd7 {[%clk 0:02:38.4]} 11. f5 {[%clk 0:02:30.1]}
11... e5 {[%clk 0:02:35.3]} 12. Nxc6 {[%clk 0:02:18.9]} 12... bxc6 {[%clk
0:02:28.8]} 13. g4 {[%clk 0:02:11.4]} 13... Ne8 {[%clk 0:02:17.9]} 14. Qf3
{[%clk 0:02:05.7]} 14... h6 {[%clk 0:02:14.8]} 15. Rad1 {[%clk 0:02:04.5]} 15...
a5 {[%clk 0:02:09.3]} 16. Na4 {[%clk 0:01:50.3]} 16... Rb8 {[%clk 0:02:03.7]}
17. c4 {[%clk 0:01:45.9]} 17... c5 {[%clk 0:01:52.2]} 18. Nc3 {[%clk 0:01:32.3]}
18... Nc7 {[%clk 0:01:50.4]} 19. Rd2 {[%clk 0:01:15.3]} 19... Rb4 {[%clk
0:01:47]} 20. h4 {[%clk 0:00:58.8]} 20... a4 {[%clk 0:01:39.7]} 21. Bd1 {[%clk
0:00:57]} 21... Rxc4 {[%clk 0:01:34.3]} 22. g5 {[%clk 0:00:56.8]} 22... hxg5
{[%clk 0:01:22.2]} 23. hxg5 {[%clk 0:00:57.7]} 23... Bxg5 {[%clk 0:01:22.1]} 24.
Rh2 {[%clk 0:00:58.1]} 24... f6 {[%clk 0:00:59.5]} 25. Qh3 {[%clk 0:00:14.8]}
25... Bxe3+ {[%clk 0:00:51.4]} 26. Qxe3 {[%clk 0:00:15.7]} 26... Kf7 {[%clk
0:00:50.7]} 27. Qg3 {[%clk 0:00:13.4]} 27... Rg8 {[%clk 0:00:44.3]} 28. Rh7
{[%clk 0:00:12.3]} 28... Bc6 {[%clk 0:00:37.9]} 29. Qg6+ {[%clk 0:00:10.7]}
29... Kf8 {[%clk 0:00:37.3]} 30. Rf2 {[%clk 0:00:07.5]} 30... Ne8 {[%clk
0:00:36.1]} 31. Qg3 {[%clk 0:00:07.3]} 31... Rd4 {[%clk 0:00:35.5]} 32. Be2
{[%clk 0:00:06.4]} 32... Qa8 {[%clk 0:00:33]} 33. Bf3 {[%clk 0:00:05.1]} 33...
a3 {[%clk 0:00:28.7]} 34. b3 {[%clk 0:00:03.8]} 34... Qa5 {[%clk 0:00:29.3]} 35.
Rc2 {[%clk 0:00:02.8]} 35... Rd3 {[%clk 0:00:28.5]} 36. Kg2 {[%clk 0:00:02.6]}
36... Rxc3 {[%clk 0:00:28.1]} 37. Rf2 {[%clk 0:00:01.9]} 37... Bxe4 {[%clk
0:00:26]} 38. Qg6 {[%clk 0:00:01.4]} 38... Rxf3 {[%clk 0:00:24.4]} 0-1

[Event "Early-Titled-Tuesday-Blitz-October-24-2023"]
[Site "Chess.com"]
[Date "2023.10.24"]
[Round "10"]
[White "wannabe2700"]
[Black "ExcitingTrap"]
[Result "1-0"]
[WhiteElo "2644"]
[BlackElo "2417"]
[TimeControl "180+1"]
[EndTime "9:52:49 PDT"]
[Termination "wannabe2700 won on time"]

1. e4 {[%clk 0:03:00.9]} 1... e5 {[%clk 0:02:58.7]} 2. Nf3 {[%clk 0:03:01.1]}
2... Nc6 {[%clk 0:02:58.9]} 3. Bb5 {[%clk 0:03:01.2]} 3... a6 {[%clk 0:02:59.3]}
4. Ba4 {[%clk 0:03:01.8]} 4... Nf6 {[%clk 0:02:59.3]} 5. O-O {[%clk 0:03:02.2]}
5... Be7 {[%clk 0:02:57.6]} 6. Re1 {[%clk 0:03:02.7]} 6... b5 {[%clk 0:02:57.9]}
7. Bb3 {[%clk 0:03:03.2]} 7... O-O {[%clk 0:02:58.2]} 8. c3 {[%clk 0:03:03.7]}
8... Bb7 {[%clk 0:02:56.5]} 9. d4 {[%clk 0:03:01.3]} 9... d6 {[%clk 0:02:12.2]}
10. Nbd2 {[%clk 0:02:37.8]} 10... Re8 {[%clk 0:02:01.3]} 11. Ng5 {[%clk
0:02:30.7]} 11... Rf8 {[%clk 0:02:00.4]} 12. Nf1 {[%clk 0:02:29]} 12... Na5
{[%clk 0:01:36.1]} 13. Bc2 {[%clk 0:02:28.4]} 13... h6 {[%clk 0:01:31.2]} 14.
Nf3 {[%clk 0:02:28.3]} 14... exd4 {[%clk 0:01:30.1]} 15. Nxd4 {[%clk 0:02:23.1]}
15... Re8 {[%clk 0:01:17.2]} 16. Nf5 {[%clk 0:02:18]} 16... Bf8 {[%clk
0:01:17.6]} 17. N1g3 {[%clk 0:02:17.9]} 17... Nc4 {[%clk 0:01:14.5]} 18. b3
{[%clk 0:02:17]} 18... Ne5 {[%clk 0:01:14.2]} 19. f4 {[%clk 0:02:16.3]} 19...
Ng6 {[%clk 0:01:13.3]} 20. h4 {[%clk 0:02:15.3]} 20... Ne7 {[%clk 0:01:04]} 21.
Ne3 {[%clk 0:02:01.6]} 21... Ng6 {[%clk 0:00:53.8]} 22. Nef5 {[%clk 0:01:49.6]}
22... Ne7 {[%clk 0:00:53.9]} 23. Nd4 {[%clk 0:01:36.1]} 23... c5 {[%clk
0:00:45]} 24. Nf3 {[%clk 0:01:33.4]} 24... Bc8 {[%clk 0:00:40.3]} 25. f5 {[%clk
0:01:31.7]} 25... Nc6 {[%clk 0:00:38.8]} 26. Bf4 {[%clk 0:01:29.7]} 26... Ng4
{[%clk 0:00:26.2]} 27. Qd2 {[%clk 0:01:19.1]} 27... Nce5 {[%clk 0:00:21.4]} 28.
Rad1 {[%clk 0:01:18.2]} 28... Bb7 {[%clk 0:00:15.8]} 29. Nf1 {[%clk 0:01:08.4]}
29... Nxf3+ {[%clk 0:00:13.4]} 30. gxf3 {[%clk 0:01:07]} 30... Ne5 {[%clk
0:00:13.9]} 31. Qf2 {[%clk 0:00:58.5]} 31... Qxh4 {[%clk 0:00:11.9]} 32. Qxh4
{[%clk 0:00:59.4]} 32... Nxf3+ {[%clk 0:00:12.1]} 33. Kf2 {[%clk 0:01:00.1]}
33... Nxh4 {[%clk 0:00:12.7]} 34. Bxd6 {[%clk 0:00:54.3]} 34... Bxd6 {[%clk
0:00:11.6]} 35. Rxd6 {[%clk 0:00:55.2]} 35... Rad8 {[%clk 0:00:08.8]} 36. Rb6
{[%clk 0:00:51.5]} 36... Bc8 {[%clk 0:00:06.7]} 37. Rc6 {[%clk 0:00:49.3]} 37...
g6 {[%clk 0:00:03.7]} 38. fxg6 {[%clk 0:00:48.6]} 38... Nxg6 {[%clk 0:00:03.9]}
39. Rxc5 {[%clk 0:00:48.4]} 39... Ne5 {[%clk 0:00:04.2]} 40. Ne3 {[%clk
0:00:43.2]} 40... Kh8 {[%clk 0:00:03.3]} 41. Rh1 {[%clk 0:00:42.1]} 41... Rd6
{[%clk 0:00:02.6]} 42. Rd5 {[%clk 0:00:39.7]} 42... Rf6+ {[%clk 0:00:02.2]} 43.
Ke2 {[%clk 0:00:39.2]} 1-0

[Event "Early-Titled-Tuesday-Blitz-October-24-2023"]
[Site "Chess.com"]
[Date "2023.10.24"]
[Round "10"]
[White "Payyappat"]
[Black "Xqswdc"]
[Result "1-0"]
[WhiteElo "2504"]
[BlackElo "2342"]
[TimeControl "180+1"]
[EndTime "9:52:51 PDT"]
[Termination "Payyappat won on time"]

1. e4 {[%clk 0:03:00.9]} 1... d6 {[%clk 0:02:59.2]} 2. d4 {[%clk 0:02:58.6]}
2... Nd7 {[%clk 0:02:55.8]} 3. Nc3 {[%clk 0:02:58.3]} 3... e5 {[%clk 0:02:56.1]}
4. Nf3 {[%clk 0:02:57.8]} 4... Be7 {[%clk 0:02:56.5]} 5. Bc4 {[%clk 0:02:57.3]}
5... Ngf6 {[%clk 0:02:57.1]} 6. O-O {[%clk 0:02:55.3]} 6... O-O {[%clk
0:02:57.3]} 7. Bg5 {[%clk 0:02:53.4]} 7... h6 {[%clk 0:02:56.7]} 8. Bxf6 {[%clk
0:02:49.1]} 8... Bxf6 {[%clk 0:02:53.3]} 9. Nd5 {[%clk 0:02:48.6]} 9... exd4
{[%clk 0:02:52.1]} 10. Nxf6+ {[%clk 0:02:46]} 10... Qxf6 {[%clk 0:02:52.7]} 11.
Qxd4 {[%clk 0:02:40.4]} 11... Re8 {[%clk 0:02:51.6]} 12. Rfe1 {[%clk 0:02:38]}
12... Ne5 {[%clk 0:02:51]} 13. Nxe5 {[%clk 0:02:36.7]} 13... Rxe5 {[%clk
0:02:49.2]} 14. Rad1 {[%clk 0:02:34.7]} 14... Bg4 {[%clk 0:02:38.6]} 15. Rd3
{[%clk 0:02:31.7]} 15... Rae8 {[%clk 0:02:33.4]} 16. Rg3 {[%clk 0:02:29.1]}
16... Be6 {[%clk 0:01:39.8]} 17. Bd3 {[%clk 0:02:26.3]} 17... c5 {[%clk
0:01:14.2]} 18. Qc3 {[%clk 0:02:23.9]} 18... d5 {[%clk 0:00:48.8]} 19. f4 {[%clk
0:02:18.9]} 19... Qxf4 {[%clk 0:00:21.2]} 20. Rf1 {[%clk 0:02:15]} 20... d4
{[%clk 0:00:21.6]} 21. Qe1 {[%clk 0:01:59.8]} 21... Qxf1+ {[%clk 0:00:11.4]} 22.
Qxf1 {[%clk 0:01:58]} 22... a6 {[%clk 0:00:10.5]} 23. b3 {[%clk 0:01:54.5]}
23... b5 {[%clk 0:00:10.5]} 24. Qf6 {[%clk 0:01:52.1]} 24... Rg5 {[%clk
0:00:06.6]} 25. Rxg5 {[%clk 0:01:50.8]} 25... hxg5 {[%clk 0:00:07.5]} 26. Qxg5
{[%clk 0:01:51.3]} 26... c4 {[%clk 0:00:08.2]} 27. bxc4 {[%clk 0:01:49]} 27...
bxc4 {[%clk 0:00:09.1]} 28. Be2 {[%clk 0:01:48.9]} 28... d3 {[%clk 0:00:09.6]}
29. cxd3 {[%clk 0:01:46.5]} 29... c3 {[%clk 0:00:10.1]} 30. Qc1 {[%clk
0:01:44.2]} 30... Rc8 {[%clk 0:00:10.2]} 31. a3 {[%clk 0:01:40.9]} 31... c2
{[%clk 0:00:07]} 32. d4 {[%clk 0:01:39.2]} 32... Bb3 {[%clk 0:00:07.6]} 33. Kf2
{[%clk 0:01:34.5]} 33... Ba4 {[%clk 0:00:03]} 34. Bd3 {[%clk 0:01:31.5]} 34...
Rb8 {[%clk 0:00:01.8]} 35. Qg5 {[%clk 0:01:14.7]} 35... Rb2 {[%clk 0:00:01.5]}
36. Qd8+ {[%clk 0:01:11.9]} 36... Kh7 {[%clk 0:00:02.2]} 37. e5+ {[%clk
0:01:07.1]} 37... g6 {[%clk 0:00:02.7]} 38. Bxc2 {[%clk 0:01:03.2]} 38... Rxc2+
{[%clk 0:00:03.6]} 39. Kg3 {[%clk 0:01:02.2]} 39... Bc6 {[%clk 0:00:04.5]} 40.
Qc7 {[%clk 0:00:59]} 40... Rxg2+ {[%clk 0:00:04.2]} 41. Kh3 {[%clk 0:00:54]}
41... Bd5 {[%clk 0:00:05.1]} 42. e6 {[%clk 0:00:47.3]} 42... Kg7 {[%clk
0:00:02.2]} 43. Qxf7+ {[%clk 0:00:45.7]} 43... Kh6 {[%clk 0:00:02]} 44. Qf8+
{[%clk 0:00:44.6]} 44... Kg5 {[%clk 0:00:02.4]} 45. Qd8+ {[%clk 0:00:42.7]}
45... Kh5 {[%clk 0:00:01.6]} 46. Qxd5+ {[%clk 0:00:42.2]} 46... Rg5 {[%clk
0:00:02.5]} 47. Qf3+ {[%clk 0:00:41.3]} 47... Kh6 {[%clk 0:00:01.5]} 48. e7
{[%clk 0:00:42.2]} 1-0

[Event "Early-Titled-Tuesday-Blitz-October-24-2023"]
[Site "Chess.com"]
[Date "2023.10.24"]
[Round "10"]
[White "FREDERICKtheMATE"]
[Black "santosalberto1987"]
[Result "1-0"]
[WhiteElo "2595"]
[BlackElo "2433"]
[TimeControl "180+1"]
[EndTime "9:52:53 PDT"]
[Termination "FREDERICKtheMATE won by resignation"]

1. Nf3 {[%clk 0:03:00.9]} 1... d5 {[%clk 0:02:59.7]} 2. d4 {[%clk 0:03:00.5]}
2... Nf6 {[%clk 0:02:59.6]} 3. c4 {[%clk 0:03:01]} 3... c6 {[%clk 0:02:59.7]} 4.
cxd5 {[%clk 0:03:00.3]} 4... cxd5 {[%clk 0:02:59.9]} 5. Nc3 {[%clk 0:03:00.9]}
5... Nc6 {[%clk 0:03:00.4]} 6. Bf4 {[%clk 0:03:01.4]} 6... Bf5 {[%clk
0:03:00.9]} 7. e3 {[%clk 0:03:01.1]} 7... e6 {[%clk 0:03:01]} 8. Bb5 {[%clk
0:03:00.9]} 8... Nd7 {[%clk 0:02:57.3]} 9. O-O {[%clk 0:02:58.4]} 9... Be7
{[%clk 0:02:56.3]} 10. Rc1 {[%clk 0:02:57.6]} 10... Rc8 {[%clk 0:02:51.4]} 11.
Qa4 {[%clk 0:02:56.1]} 11... a6 {[%clk 0:02:50]} 12. Be2 {[%clk 0:02:54.8]}
12... O-O {[%clk 0:02:41.9]} 13. a3 {[%clk 0:02:54.4]} 13... Qa5 {[%clk
0:02:40.7]} 14. b4 {[%clk 0:02:51.4]} 14... Qxa4 {[%clk 0:02:35.7]} 15. Nxa4
{[%clk 0:02:51.9]} 15... b5 {[%clk 0:02:29.1]} 16. Nc5 {[%clk 0:02:50.4]} 16...
Nxc5 {[%clk 0:02:29.2]} 17. bxc5 {[%clk 0:02:49.9]} 17... Ra8 {[%clk 0:02:22.7]}
18. a4 {[%clk 0:02:46.6]} 18... b4 {[%clk 0:02:13.9]} 19. Ne5 {[%clk 0:02:43.2]}
19... Nxe5 {[%clk 0:02:11.5]} 20. Bxe5 {[%clk 0:02:41.5]} 20... a5 {[%clk
0:02:09.7]} 21. Bb5 {[%clk 0:02:32.8]} 21... Ra7 {[%clk 0:01:45.1]} 22. c6
{[%clk 0:02:27.1]} 22... Rc8 {[%clk 0:01:36.6]} 23. c7 {[%clk 0:02:23.6]} 23...
f6 {[%clk 0:01:33.4]} 24. Bd7 {[%clk 0:02:16.6]} 24... Raa8 {[%clk 0:01:27.3]}
25. Bxc8 {[%clk 0:02:13.2]} 25... Rxc8 {[%clk 0:01:27.8]} 26. Bg3 {[%clk
0:02:13.4]} 26... Kf7 {[%clk 0:01:23]} 27. f3 {[%clk 0:02:12.1]} 27... Bd3
{[%clk 0:01:18.7]} 28. Rfd1 {[%clk 0:02:10.5]} 28... Bc4 {[%clk 0:01:18.7]} 29.
Rd2 {[%clk 0:02:07.3]} 29... Ke8 {[%clk 0:01:17.3]} 30. Rdc2 {[%clk 0:02:05.5]}
30... Kd7 {[%clk 0:01:17.2]} 31. e4 {[%clk 0:02:04.5]} 31... Bd6 {[%clk
0:01:15.3]} 32. Bxd6 {[%clk 0:02:04.1]} 32... Kxd6 {[%clk 0:01:16.2]} 33. Kf2
{[%clk 0:01:58.8]} 33... Rxc7 {[%clk 0:01:14.3]} 34. Ke3 {[%clk 0:01:59.3]}
34... Rb7 {[%clk 0:01:13.3]} 35. Rb2 {[%clk 0:01:51.6]} 35... b3 {[%clk
0:01:08.1]} 36. f4 {[%clk 0:01:51.5]} 36... Rb4 {[%clk 0:01:05.6]} 37. e5+
{[%clk 0:01:51.5]} 37... fxe5 {[%clk 0:01:04]} 38. fxe5+ {[%clk 0:01:52.4]}
38... Ke7 {[%clk 0:01:03.6]} 39. Ra1 {[%clk 0:01:50.9]} 39... Rb8 {[%clk
0:01:02.2]} 40. Kd2 {[%clk 0:01:46.9]} 40... Rf8 {[%clk 0:00:58.9]} 41. Kc3
{[%clk 0:01:46.5]} 41... Rf4 {[%clk 0:00:57.8]} 42. Re1 {[%clk 0:01:45]} 42...
Rf8 {[%clk 0:00:46.5]} 43. Rd2 {[%clk 0:01:42]} 43... Rb8 {[%clk 0:00:44.2]} 44.
Rf2 {[%clk 0:01:40.6]} 44... Rb4 {[%clk 0:00:33.7]} 45. Ra1 {[%clk 0:01:39.7]}
45... Rb8 {[%clk 0:00:29.9]} 46. g4 {[%clk 0:01:33.8]} 46... Rb7 {[%clk
0:00:27.2]} 47. h4 {[%clk 0:01:32.5]} 47... Rc7 {[%clk 0:00:27.2]} 48. Kb2
{[%clk 0:01:31]} 48... Rb7 {[%clk 0:00:27.4]} 49. h5 {[%clk 0:01:25.2]} 49...
Rb8 {[%clk 0:00:25.7]} 50. g5 {[%clk 0:01:24.4]} 50... Rf8 {[%clk 0:00:19.6]}
51. Rxf8 {[%clk 0:01:22.7]} 51... Kxf8 {[%clk 0:00:20.5]} 52. Re1 {[%clk
0:01:12.7]} 52... Ke7 {[%clk 0:00:18.5]} 53. Re3 {[%clk 0:01:12.5]} 53... Kf7
{[%clk 0:00:18.4]} 54. Rf3+ {[%clk 0:01:11.7]} 54... Ke7 {[%clk 0:00:14.7]} 55.
g6 {[%clk 0:01:11.1]} 55... hxg6 {[%clk 0:00:11.8]} 56. hxg6 {[%clk 0:01:12]}
56... Ke8 {[%clk 0:00:10.2]} 57. Rf7 {[%clk 0:01:11.5]} 57... Bd3 {[%clk
0:00:10.6]} 58. Rxg7 {[%clk 0:01:10.8]} 58... Kf8 {[%clk 0:00:11.2]} 59. Rf7+
{[%clk 0:01:10]} 59... Kg8 {[%clk 0:00:11.6]} 60. Rf6 {[%clk 0:01:10.1]} 60...
Kg7 {[%clk 0:00:11]} 61. Kxb3 {[%clk 0:01:09.8]} 61... Bxg6 {[%clk 0:00:10.9]}
62. Rxe6 {[%clk 0:01:09.2]} 62... Be4 {[%clk 0:00:10.1]} 63. Ra6 {[%clk
0:01:08.5]} 1-0

[Event "Early-Titled-Tuesday-Blitz-October-24-2023"]
[Site "Chess.com"]
[Date "2023.10.24"]
[Round "10"]
[White "Nekoo04"]
[Black "Manukyan_Artak"]
[Result "0-1"]
[WhiteElo "2291"]
[BlackElo "2406"]
[TimeControl "180+1"]
[EndTime "9:52:53 PDT"]
[Termination "Manukyan_Artak won by checkmate"]

1. d4 {[%clk 0:03:00.9]} 1... d5 {[%clk 0:02:57.8]} 2. c4 {[%clk 0:03:00.3]}
2... dxc4 {[%clk 0:02:57.6]} 3. Nf3 {[%clk 0:02:58.2]} 3... Nf6 {[%clk
0:02:57.5]} 4. g3 {[%clk 0:02:57.4]} 4... Bf5 {[%clk 0:02:56.8]} 5. Bg2 {[%clk
0:02:54.1]} 5... Nbd7 {[%clk 0:02:54.8]} 6. O-O {[%clk 0:02:41.7]} 6... e6
{[%clk 0:02:50.9]} 7. Nc3 {[%clk 0:02:36.5]} 7... c6 {[%clk 0:02:34.2]} 8. Nh4
{[%clk 0:01:42.5]} 8... Bg4 {[%clk 0:02:32.2]} 9. h3 {[%clk 0:01:38.5]} 9... Bh5
{[%clk 0:02:30.4]} 10. g4 {[%clk 0:01:25.7]} 10... Bg6 {[%clk 0:02:27.3]} 11.
Nxg6 {[%clk 0:01:25.7]} 11... hxg6 {[%clk 0:02:27.1]} 12. e4 {[%clk 0:01:26.6]}
12... e5 {[%clk 0:02:16]} 13. d5 {[%clk 0:00:51.1]} 13... Nb6 {[%clk 0:02:15.6]}
14. f4 {[%clk 0:00:39.3]} 14... Bd6 {[%clk 0:02:03.5]} 15. Qf3 {[%clk
0:00:30.9]} 15... O-O {[%clk 0:01:56.1]} 16. dxc6 {[%clk 0:00:17.7]} 16... bxc6
{[%clk 0:01:55.8]} 17. f5 {[%clk 0:00:17.3]} 17... gxf5 {[%clk 0:01:37.1]} 18.
exf5 {[%clk 0:00:16.8]} 18... Nbd5 {[%clk 0:01:24.8]} 19. g5 {[%clk 0:00:15.7]}
19... e4 {[%clk 0:01:12.3]} 20. Nxe4 {[%clk 0:00:14.3]} 20... Nxe4 {[%clk
0:01:00.2]} 21. Qxe4 {[%clk 0:00:14.3]} 21... Bc7 {[%clk 0:00:58.8]} 22. f6
{[%clk 0:00:11.4]} 22... Qd6 {[%clk 0:00:46.1]} 23. fxg7 {[%clk 0:00:05.3]}
23... Qh2+ {[%clk 0:00:34.4]} 24. Kf2 {[%clk 0:00:05]} 24... Qg3+ {[%clk
0:00:31.8]} 25. Kg1 {[%clk 0:00:05.2]} 25... Rfe8 {[%clk 0:00:27.6]} 26. Qf5
{[%clk 0:00:03.7]} 26... Qh2+ {[%clk 0:00:23.2]} 27. Kf2 {[%clk 0:00:03.7]}
27... Bb6+ {[%clk 0:00:23.3]} 28. Kf3 {[%clk 0:00:03.4]} 28... Ne3 {[%clk
0:00:18.5]} 29. Bxe3 {[%clk 0:00:03.1]} 29... Rxe3+ {[%clk 0:00:18.5]} 30. Kg4
{[%clk 0:00:03.6]} 30... Qxg2+ {[%clk 0:00:17.8]} 31. Kh4 {[%clk 0:00:03]} 31...
Qe4+ {[%clk 0:00:08.9]} 32. Rf4 {[%clk 0:00:02]} 32... Qxf5 {[%clk 0:00:08.3]}
33. Rxf5 {[%clk 0:00:02.9]} 33... Re4+ {[%clk 0:00:08.3]} 34. Kh5 {[%clk
0:00:02.7]} 34... Kxg7 {[%clk 0:00:09.2]} 35. Raf1 {[%clk 0:00:02.4]} 35... Rh8#
{[%clk 0:00:09.8]} 0-1

[Event "Early-Titled-Tuesday-Blitz-October-24-2023"]
[Site "Chess.com"]
[Date "2023.10.24"]
[Round "10"]
[White "RCone"]
[Black "Boninknights"]
[Result "0-1"]
[WhiteElo "2416"]
[BlackElo "2317"]
[TimeControl "180+1"]
[EndTime "9:52:56 PDT"]
[Termination "Boninknights won by resignation"]

1. e4 {[%clk 0:03:00.9]} 1... e5 {[%clk 0:02:55]} 2. Bc4 {[%clk 0:02:57]} 2...
Nf6 {[%clk 0:02:53.6]} 3. Nc3 {[%clk 0:02:43.5]} 3... Bb4 {[%clk 0:02:50.5]} 4.
d3 {[%clk 0:02:41.6]} 4... d5 {[%clk 0:02:47.8]} 5. exd5 {[%clk 0:02:42.1]} 5...
Nxd5 {[%clk 0:02:46.6]} 6. Ne2 {[%clk 0:02:38.3]} 6... O-O {[%clk 0:02:44]} 7.
Bxd5 {[%clk 0:02:36.8]} 7... Qxd5 {[%clk 0:02:42.3]} 8. O-O {[%clk 0:02:36.8]}
8... Qc6 {[%clk 0:02:35.3]} 9. f4 {[%clk 0:02:28.8]} 9... exf4 {[%clk
0:02:20.1]} 10. Bxf4 {[%clk 0:02:26.1]} 10... Bg4 {[%clk 0:02:17]} 11. Qc1
{[%clk 0:02:22.6]} 11... Nd7 {[%clk 0:02:06.5]} 12. h3 {[%clk 0:02:21.4]} 12...
Bxe2 {[%clk 0:02:01.2]} 13. Nxe2 {[%clk 0:02:22.3]} 13... Rae8 {[%clk
0:01:58.9]} 14. Ng3 {[%clk 0:02:15]} 14... Bc5+ {[%clk 0:01:52.8]} 15. Kh1
{[%clk 0:02:13.9]} 15... Nf6 {[%clk 0:01:43.9]} 16. Qd2 {[%clk 0:01:59.5]} 16...
Nd5 {[%clk 0:01:39.9]} 17. Rae1 {[%clk 0:01:53.9]} 17... Bd6 {[%clk 0:01:32.5]}
18. Bxd6 {[%clk 0:01:52.2]} 18... Qxd6 {[%clk 0:01:30.3]} 19. Nf5 {[%clk
0:01:50]} 19... Qd7 {[%clk 0:01:19.5]} 20. Qf2 {[%clk 0:01:48.2]} 20... f6
{[%clk 0:01:15.9]} 21. Qf3 {[%clk 0:01:32.3]} 21... c6 {[%clk 0:01:10.8]} 22.
Qg4 {[%clk 0:01:30.8]} 22... Kh8 {[%clk 0:01:07.7]} 23. Qf3 {[%clk 0:01:10.2]}
23... g6 {[%clk 0:01:04.8]} 24. Ng3 {[%clk 0:01:02.8]} 24... f5 {[%clk
0:01:03.9]} 25. d4 {[%clk 0:00:57]} 25... b5 {[%clk 0:00:59.5]} 26. c3 {[%clk
0:00:57.1]} 26... a5 {[%clk 0:00:58.8]} 27. a3 {[%clk 0:00:51.7]} 27... a4
{[%clk 0:00:57.4]} 28. Kg1 {[%clk 0:00:47.2]} 28... Nb6 {[%clk 0:00:56]} 29.
Rxe8 {[%clk 0:00:33]} 29... Rxe8 {[%clk 0:00:54.8]} 30. Rf2 {[%clk 0:00:32.3]}
30... Nc4 {[%clk 0:00:53]} 31. Re2 {[%clk 0:00:31.8]} 31... Kg7 {[%clk
0:00:51.4]} 32. Kf2 {[%clk 0:00:26.5]} 32... Kf7 {[%clk 0:00:50.1]} 33. h4
{[%clk 0:00:26.5]} 33... Rxe2+ {[%clk 0:00:48.7]} 34. Nxe2 {[%clk 0:00:26.1]}
34... Nxb2 {[%clk 0:00:44.7]} 35. h5 {[%clk 0:00:26.3]} 35... Nc4 {[%clk
0:00:44.3]} 36. hxg6+ {[%clk 0:00:26]} 36... hxg6 {[%clk 0:00:44.3]} 37. Qh3
{[%clk 0:00:25.6]} 37... Kg7 {[%clk 0:00:42.8]} 38. Nf4 {[%clk 0:00:23.3]} 38...
Qd6 {[%clk 0:00:40.2]} 39. g3 {[%clk 0:00:23.2]} 39... Nd2 {[%clk 0:00:38.9]}
40. Qh4 {[%clk 0:00:17.8]} 40... Ne4+ {[%clk 0:00:38]} 41. Kf3 {[%clk
0:00:18.4]} 41... Qxa3 {[%clk 0:00:35.5]} 42. Ne2 {[%clk 0:00:13.3]} 42... Nxc3
{[%clk 0:00:34.1]} 43. Nxc3 {[%clk 0:00:09.5]} 43... Qxc3+ {[%clk 0:00:32.5]}
44. Kg2 {[%clk 0:00:10.4]} 44... Qd2+ {[%clk 0:00:29.5]} 45. Kg1 {[%clk
0:00:09.6]} 45... Qe1+ {[%clk 0:00:27.9]} 46. Kg2 {[%clk 0:00:10]} 46... Qe4+
{[%clk 0:00:27.8]} 47. Kg1 {[%clk 0:00:10.7]} 47... Qxh4 {[%clk 0:00:26.6]} 0-1

[Event "Early-Titled-Tuesday-Blitz-October-24-2023"]
[Site "Chess.com"]
[Date "2023.10.24"]
[Round "10"]
[White "djano"]
[Black "venturov"]
[Result "1-0"]
[WhiteElo "2681"]
[BlackElo "2511"]
[TimeControl "180+1"]
[EndTime "9:53:02 PDT"]
[Termination "djano won by resignation"]

1. d4 {[%clk 0:03:00.9]} 1... Nf6 {[%clk 0:02:59.9]} 2. Bf4 {[%clk 0:03:00.1]}
2... e6 {[%clk 0:02:59.8]} 3. Nf3 {[%clk 0:02:58.7]} 3... c5 {[%clk 0:03:00.1]}
4. e3 {[%clk 0:02:57.8]} 4... cxd4 {[%clk 0:03:00.1]} 5. exd4 {[%clk 0:02:57.8]}
5... b6 {[%clk 0:03:00.8]} 6. Nbd2 {[%clk 0:02:53.3]} 6... Be7 {[%clk
0:03:00.6]} 7. h3 {[%clk 0:02:48.3]} 7... O-O {[%clk 0:03:00.5]} 8. Nc4 {[%clk
0:02:46.1]} 8... d6 {[%clk 0:02:54.9]} 9. Bd3 {[%clk 0:02:42.7]} 9... Bb7 {[%clk
0:02:35.4]} 10. O-O {[%clk 0:02:42.3]} 10... b5 {[%clk 0:02:35.2]} 11. Ncd2
{[%clk 0:02:35.3]} 11... a6 {[%clk 0:02:35.6]} 12. Re1 {[%clk 0:02:34]} 12...
Nbd7 {[%clk 0:02:32.8]} 13. Bh2 {[%clk 0:02:25.7]} 13... Nb6 {[%clk 0:02:31.2]}
14. Qe2 {[%clk 0:02:14.3]} 14... Rc8 {[%clk 0:02:28.2]} 15. c4 {[%clk
0:02:11.7]} 15... bxc4 {[%clk 0:02:25.1]} 16. Nxc4 {[%clk 0:02:12]} 16... Nxc4
{[%clk 0:02:24.7]} 17. Bxc4 {[%clk 0:02:12.9]} 17... Qb6 {[%clk 0:01:57]} 18. b3
{[%clk 0:02:08.4]} 18... Bxf3 {[%clk 0:01:48.3]} 19. Qxf3 {[%clk 0:02:08.3]}
19... d5 {[%clk 0:01:42.8]} 20. Bd3 {[%clk 0:02:01.4]} 20... Qxd4 {[%clk
0:01:42.9]} 21. Bxa6 {[%clk 0:01:56.8]} 21... Ra8 {[%clk 0:01:20.6]} 22. Be5
{[%clk 0:01:43.3]} 22... Qb6 {[%clk 0:01:15.2]} 23. Bd3 {[%clk 0:01:43.2]} 23...
Qb4 {[%clk 0:00:58]} 24. Bc3 {[%clk 0:01:31.3]} 24... Qb6 {[%clk 0:00:48.6]} 25.
Red1 {[%clk 0:01:27]} 25... Rfc8 {[%clk 0:00:47.8]} 26. Bd4 {[%clk 0:01:25.9]}
26... Qb4 {[%clk 0:00:36.2]} 27. Bb2 {[%clk 0:00:59.7]} 27... h6 {[%clk
0:00:33.8]} 28. a3 {[%clk 0:00:59.1]} 28... Qb6 {[%clk 0:00:30.9]} 29. b4 {[%clk
0:00:59.4]} 29... Rc7 {[%clk 0:00:16.7]} 30. Bd4 {[%clk 0:00:59.6]} 30... Qb7
{[%clk 0:00:15.3]} 31. Be5 {[%clk 0:00:58.9]} 31... Rcc8 {[%clk 0:00:12.2]} 32.
Re1 {[%clk 0:00:58.7]} 32... Kf8 {[%clk 0:00:12.3]} 33. g4 {[%clk 0:00:58.4]}
33... Qb6 {[%clk 0:00:09]} 34. h4 {[%clk 0:00:56.8]} 34... Ke8 {[%clk
0:00:03.5]} 35. g5 {[%clk 0:00:55.1]} 35... hxg5 {[%clk 0:00:04.4]} 36. hxg5
{[%clk 0:00:55.9]} 36... Nd7 {[%clk 0:00:04.2]} 37. Bxg7 {[%clk 0:00:56.1]}
37... Bxg5 {[%clk 0:00:04.4]} 38. Qh5 {[%clk 0:00:54.6]} 38... Bf6 {[%clk
0:00:01.6]} 39. Qh7 {[%clk 0:00:41.9]} 39... Ke7 {[%clk 0:00:01.5]} 40. Bg6
{[%clk 0:00:18.2]} 40... Rg8 {[%clk 0:00:01.5]} 41. Bxf6+ {[%clk 0:00:18.6]}
41... Nxf6 {[%clk 0:00:01.5]} 42. Qxf7+ {[%clk 0:00:19.5]} 42... Kd6 {[%clk
0:00:02.1]} 43. Qxf6 {[%clk 0:00:20]} 43... Raf8 {[%clk 0:00:02.8]} 44. Rxe6+
{[%clk 0:00:19.6]} 44... Kc7 {[%clk 0:00:03.1]} 45. Rxb6 {[%clk 0:00:20.5]}
45... Rxf6 {[%clk 0:00:02.6]} 46. Rxf6 {[%clk 0:00:21.4]} 1-0